fUSD/lending_fUSD_20250811
["ID","MTS","AMOUNT","RATE_DAILY","PERIOD"]
[378498694,1754886735328,-486.385977,0.00019178,2]
[378498695,1754886735338,-486.385977,0.00019178,2]
[378498696,1754886735348,-486.385977,0.00019178,2]
[378498697,1754886735359,-486.385977,0.00019178,2]
[378498698,1754886735368,-486.385977,0.00019178,2]
[378498699,1754886735378,-486.385977,0.00019178,2]
[378498700,1754886735388,-486.385977,0.00019178,2]
[378498701,1754886735398,-486.385977,0.00019178,2]
[378498702,1754886735408,-486.385977,0.00019178,2]
[378498703,1754886735418,-15432.23,0.00019178,2]
[378498704,1754886735428,-16569.73,0.00019178,2]
[378498705,1754886735439,-1669.89,0.00019189,2]
[378498706,1754886735449,-747.03,0.00019189,2]
[378498707,1754886735459,-2364.88,0.00019189,2]
[378498708,1754886735470,-2423.22,0.00019189,2]
[378498709,1754886735480,-1881.34,0.00019189,2]
[378498710,1754886735492,-1965.12,0.00019189,2]
[378498711,1754886735503,-1429.66,0.00019189,2]
[378498712,1754886735513,-1438.72,0.00019189,2]
[378498713,1754886735523,-1146.62,0.00019189,2]
[378498714,1754886735534,-2833.62,0.00019189,2]
[378498715,1754886735544,-782.18,0.00019189,2]
[378498716,1754886735554,-400.0,0.0001919,2]
[378498717,1754886735564,-617.49,0.0001919,2]
[378498718,1754886735575,-400.0,0.0001919,2]
[378498719,1754886735586,-1995.24,0.0001919,2]
[378498720,1754886735597,-400.0,0.0001919,2]
[378498721,1754886735610,-400.0,0.0001919,2]
[378498722,1754886735620,-1019.54,0.0001919,2]
[378498723,1754886735630,-1059.04,0.0001919,2]
[378498724,1754886735642,-865.35,0.0001919,2]
[378498725,1754886735652,-400.0,0.0001919,2]
[378498726,1754886735662,-2310.21,0.0001919,2]
[378498727,1754886735673,-400.0,0.0001919,2]
[378498728,1754886735684,-898.11,0.0001919,2]
[378498729,1754886735694,-400.0,0.0001919,2]
[378498730,1754886735704,-474.3,0.0001919,2]
[378498731,1754886735715,-754.81,0.0001919,2]
[378498732,1754886735726,-445.35,0.0001919,2]
[378498733,1754886735736,-400.0,0.0001919,2]
[378498734,1754886735746,-780.7,0.0001919,2]
[378498735,1754886735756,-600.96,0.0001919,2]
[378498736,1754886735767,-822.971514,0.0001919,2]
[378498737,1754886735776,-830.43,0.0001919,2]
[378498738,1754886735786,-906.92,0.0001919,2]
[378498739,1754886735796,-452.87,0.0001919,2]
[378498740,1754886735806,-905.61,0.0001919,2]
[378498741,1754886735816,-469.95,0.0001919,2]
[378498742,1754886735826,-154.787602,0.0001919,2]
[378498743,1754886735836,-779.35,0.0001919,2]
[378498744,1754886735846,-400.0,0.0001919,2]
[378498745,1754886735856,-872.521428,0.0001919,2]
[378498746,1754886735866,-400.0,0.0001919,2]
[378498747,1754886735876,-515.391656,0.0001919,2]
[378498748,1754886735886,-1163.2,0.0001919,2]
[378498749,1754886736131,-911.89,0.0001919,2]
[378498750,1754886736140,-801.19,0.0001919,2]
[378498751,1754886736150,-440.36,0.0001919,2]
[378498752,1754886736159,-1277.31,0.0001919,2]
[378498753,1754886736169,-198.273586,0.0001919,2]
[378498754,1754886736179,-514.07,0.0001919,2]
[378498755,1754886736188,-868.29,0.0001919,2]
[378498756,1754886736198,-668.83,0.0001919,2]
[378498757,1754886736207,-1375.88,0.0001919,2]
[378498758,1754886736217,-577.53,0.0001919,2]
[378498759,1754886736227,-8456.03,0.0001919,2]
[378498760,1754886736238,-448.3,0.0001919,2]
[378498761,1754886736248,-400.0,0.0001919,2]
[378498762,1754886736257,-163.053297,0.0001919,2]
[378498763,1754886736266,-649.48,0.0001919,2]
[378498764,1754886736276,-1680.21,0.0001919,2]
[378498765,1754886736286,-1049.17,0.0001919,2]
[378498766,1754886736296,-400.0,0.0001919,2]
[378498767,1754886736306,-951.39,0.0001919,2]
[378498768,1754886736317,-454.86,0.0001919,2]
[378498769,1754886736327,-824.89,0.0001919,2]
[378498770,1754886736338,-407.63,0.0001919,2]
[378498771,1754886736348,-585.0,0.0001919,2]
[378498772,1754886736358,-400.0,0.0001919,2]
[378498773,1754886736367,-1455.85,0.0001919,2]
[378498774,1754886736377,-400.0,0.0001919,2]
[378498775,1754886736387,-769.24,0.0001919,2]
[378498776,1754886736396,-400.0,0.0001919,2]
[378498777,1754886736405,-655.83,0.0001919,2]
[378498778,1754886736414,-2199.58,0.0001919,2]
[378498779,1754886736424,-400.0,0.0001919,2]
[378498780,1754886736433,-668.14,0.0001919,2]
[378498781,1754886736443,-2114.03,0.0001919,2]
[378498782,1754886736453,-717.01,0.0001919,2]
[378498783,1754886736462,-410.79,0.0001919,2]
[378498784,1754886736472,-526.86,0.0001919,2]
[378498785,1754886736481,-1612.96,0.0001919,2]
[378498786,1754886736491,-1228.52,0.0001919,2]
[378498787,1754886736501,-400.0,0.0001919,2]
[378498788,1754886736510,-2955.4,0.0001919,2]
[378498789,1754886736520,-400.0,0.0001919,2]
[378498790,1754886736529,-2031.05,0.0001919,2]
[378498791,1754886736538,-882.39,0.0001919,2]
[378498792,1754886736548,-400.0,0.0001919,2]
[378498793,1754886736557,-1330.79,0.0001919,2]
[378498794,1754886736567,-715.05,0.0001919,2]
[378498795,1754886736577,-1272.39,0.0001919,2]
[378498796,1754886736586,-8173.14,0.0001919,2]
[378498797,1754886736597,-1781.66,0.0001919,2]
[378498798,1754886736609,-477.68,0.0001919,2]
[378498799,1754886736620,-1122.75,0.0001919,2]
[378498800,1754886736631,-1331.68,0.0001919,2]
[378498801,1754886736640,-888.75,0.0001919,2]
[378498802,1754886736651,-400.0,0.0001919,2]
[378498803,1754886736661,-2038.29,0.0001919,2]
[378498804,1754886736670,-554.01,0.0001919,2]
[378498805,1754886736681,-651.43,0.0001919,2]
[378498806,1754886736692,-1369.36,0.0001919,2]
[378498807,1754886736702,-1339.24,0.0001919,2]
[378498808,1754886736712,-1803.47,0.0001919,2]
[378498809,1754886736722,-1113.52,0.0001919,2]
[378498810,1754886736731,-2663.6,0.0001919,2]
[378498811,1754886736742,-400.0,0.0001919,2]
[378498812,1754886736752,-3713.7,0.0001919,2]
[378498813,1754886736761,-1153.98,0.0001919,2]
[378498814,1754886736771,-1944.28,0.0001919,2]
[378498815,1754886736781,-1435.98,0.0001919,2]
[378498816,1754886736790,-2243.73,0.0001919,2]
[378498817,1754886736799,-3812.9,0.0001919,2]
[378498818,1754886736809,-592.95,0.0001919,2]
[378498819,1754886736819,-400.0,0.0001919,2]
[378498820,1754886736829,-282.1,0.0001919,2]
[378498821,1754886736838,-1891.0,0.0001919,2]
[378498822,1754886736848,-1087.1,0.0001919,2]
[378498823,1754886736858,-1589.93,0.0001919,2]
[378498824,1754886736868,-1124.67,0.0001919,2]
[378498825,1754886736878,-495.91,0.0001919,2]
[378498826,1754886736889,-400.0,0.0001919,2]
[378498827,1754886736898,-2878.68,0.0001919,2]
[378498828,1754886736908,-950.56,0.0001919,2]
[378498829,1754886736919,-1307.49,0.0001919,2]
[378498830,1754886736931,-856.38,0.0001919,2]
[378498831,1754886736940,-739.41,0.0001919,2]
[378498832,1754886736950,-2695.27,0.0001919,2]
[378498833,1754886736959,-1363.59,0.0001919,2]
[378498834,1754886736968,-812.2,0.0001919,2]
[378498835,1754886736978,-855.45,0.0001919,2]
[378498836,1754886736988,-5196.27,0.0001919,2]
[378498837,1754886736997,-400.0,0.0001919,2]
[378498838,1754886737007,-5397.17,0.0001919,2]
[378498839,1754886737016,-1486.27,0.0001919,2]
[378498840,1754886737026,-1285.96,0.0001919,2]
[378498841,1754886737035,-2798.96,0.0001919,2]
[378498842,1754886737044,-1895.73,0.0001919,2]
[378498843,1754886737054,-1274.2,0.0001919,2]
[378498844,1754886737063,-1651.76,0.0001919,2]
[378498845,1754886737073,-806.53,0.0001919,2]
[378498846,1754886737083,-1256.2,0.0001919,2]
[378498847,1754886737093,-635.75,0.0001919,2]
[378498848,1754886737103,-849.98,0.0001919,2]
[378498849,1754886737112,-507.68,0.0001919,2]
[378498850,1754886737122,-400.0,0.0001919,2]
[378498851,1754886737132,-3777.59,0.0001919,2]
[378498852,1754886737141,-3620.19,0.0001919,2]
[378498853,1754886737151,-538.52,0.0001919,2]
[378498854,1754886737160,-1287.03,0.0001919,2]
[378498855,1754886737170,-539.41,0.0001919,2]
[378498856,1754886737180,-675.45,0.0001919,2]
[378498857,1754886737190,-1583.18,0.0001919,2]
[378498858,1754886737199,-701.46,0.0001919,2]
[378498859,1754886737209,-400.0,0.0001919,2]
[378498860,1754886737219,-400.0,0.00019191,2]
[378498861,1754886737228,-406.85,0.00019191,2]
[378498862,1754886737237,-400.0,0.00019191,2]
[378498863,1754886737246,-400.0,0.00019191,2]
[378498864,1754886737256,-711.84,0.00019191,2]
[378498865,1754886737265,-400.0,0.00019191,2]
[378498866,1754886737275,-524.02,0.00019191,2]
[378498867,1754886737284,-604.75,0.00019191,2]
[378498868,1754886737294,-599.12,0.00019191,2]
[378498869,1754886737303,-400.0,0.00019191,2]
[378498870,1754886737312,-400.0,0.00019191,2]
[378498871,1754886737322,-159.04,0.00019191,2]
[378498872,1754886737331,-982.92,0.00019191,2]
[378498873,1754886737341,-400.0,0.00019191,2]
[378498874,1754886737350,-766.83,0.00019191,2]
[378498875,1754886737360,-408.66919301,0.00019191,2]
[378498876,1754886737370,-442.27,0.00019191,2]
[378498877,1754886737379,-502.43,0.00019191,2]
[378498878,1754886737389,-443.75,0.00019191,2]
[378498879,1754886737398,-400.0,0.00019191,2]
[378498880,1754886737407,-593.67,0.00019191,2]
[378498881,1754886737417,-400.0,0.00019191,2]
[378498882,1754886737427,-400.0,0.00019191,2]
[378498883,1754886737436,-400.0,0.00019191,2]
[378498884,1754886737446,-400.0,0.00019191,2]
[378498885,1754886737456,-400.0,0.00019191,2]
[378498886,1754886737466,-293.86,0.00019191,2]
[378498887,1754886737475,-984.1,0.00019191,2]
[378498888,1754886737484,-400.0,0.00019191,2]
[378498889,1754886737494,-400.0,0.00019191,2]
[378498890,1754886737503,-530.59,0.00019191,2]
[378498891,1754886737513,-408.13,0.00019191,2]
[378498892,1754886737522,-796.23,0.00019191,2]
[378498893,1754886737531,-400.0,0.00019191,2]
[378498894,1754886737542,-459.01,0.00019191,2]
[378498895,1754886737551,-1031.28,0.00019191,2]
[378498896,1754886737560,-474.33,0.00019191,2]
[378498897,1754886737569,-490.33,0.00019191,2]
[378498898,1754886737578,-400.0,0.00019191,2]
[378498899,1754886737587,-562.38,0.00019191,2]
[378498900,1754886737600,-589.46,0.00019191,2]
[378498901,1754886737609,-445.33,0.00019191,2]
[378498902,1754886737618,-435.55,0.00019191,2]
[378498903,1754886737628,-498.17,0.00019191,2]
[378498904,1754886737638,-400.0,0.00019191,2]
[378498905,1754886737648,-400.0,0.00019191,2]
[378498906,1754886737657,-498.63,0.00019191,2]
[378498907,1754886737666,-409.56,0.00019191,2]
[378498908,1754886737680,-400.0,0.00019191,2]
[378498909,1754886737691,-567.63,0.00019191,2]
[378498910,1754886737702,-690.83,0.00019191,2]
[378498911,1754886737712,-400.0,0.00019191,2]
[378498912,1754886737721,-400.0,0.00019191,2]
[378498913,1754886737730,-400.0,0.00019191,2]
[378498914,1754886737740,-710.53,0.00019191,2]
[378498915,1754886737749,-436.05,0.00019191,2]
[378498916,1754886737759,-400.0,0.00019191,2]
[378498917,1754886737768,-400.0,0.00019191,2]
[378498918,1754886737777,-400.0,0.00019191,2]
[378498919,1754886737787,-400.0,0.00019191,2]
[378498920,1754886737796,-502.26,0.00019191,2]
[378498921,1754886737805,-400.0,0.00019191,2]
[378498922,1754886737814,-564.3,0.00019191,2]
[378498923,1754886737824,-400.0,0.00019191,2]
[378498924,1754886737833,-400.0,0.00019191,2]
[378498925,1754886737843,-400.0,0.00019191,2]
[378498926,1754886737853,-400.0,0.00019191,2]
[378498927,1754886737863,-400.0,0.00019191,2]
[378498928,1754886737874,-400.0,0.00019191,2]
[378498929,1754886737883,-400.0,0.00019191,2]
[378498930,1754886737892,-400.0,0.00019191,2]
[378498931,1754886737902,-400.0,0.00019191,2]
[378498932,1754886737911,-638.71,0.00019191,2]
[378498933,1754886737922,-400.0,0.00019191,2]
[378498934,1754886737931,-512.9,0.00019191,2]
[378498935,1754886737941,-400.0,0.00019191,2]
[378498936,1754886737950,-1168.39,0.00019191,2]
[378498937,1754886737959,-816.18,0.00019191,2]
[378498938,1754886737968,-400.0,0.00019191,2]
[378498939,1754886737978,-1319.27,0.00019191,2]
[378498940,1754886737988,-400.0,0.00019191,2]
[378498941,1754886737997,-848.1,0.00019191,2]
[378498942,1754886738006,-452.23,0.00019191,2]
[378498943,1754886738015,-763.33,0.00019191,2]
[378498944,1754886738024,-400.0,0.00019191,2]
[378498945,1754886738033,-400.0,0.00019191,2]
[378498946,1754886738042,-400.0,0.00019191,2]
[378498947,1754886738051,-3527.545212,0.00019191,2]
[378498948,1754886738061,-400.0,0.00019191,2]
[378498949,1754886738070,-3527.545212,0.00019191,2]
[378498950,1754886738080,-534.83,0.00019191,2]
[378498951,1754886738089,-1432.31,0.00019191,2]
[378498952,1754886738099,-400.0,0.00019191,2]
[378498953,1754886738108,-400.0,0.00019191,2]
[378498954,1754886738117,-1096.29,0.00019191,2]
[378498955,1754886738127,-481.17,0.00019191,2]
[378498956,1754886738137,-500.1,0.00019191,2]
[378498957,1754886738146,-400.0,0.00019191,2]
[378498958,1754886738156,-400.0,0.00019191,2]
[378498959,1754886738165,-1173.96,0.00019191,2]
[378498960,1754886738175,-400.0,0.00019191,2]
[378498961,1754886738184,-402.28,0.00019191,2]
[378498962,1754886738194,-400.0,0.00019191,2]
[378498963,1754886738204,-1368.54,0.00019191,2]
[378498964,1754886738213,-400.0,0.00019191,2]
[378498965,1754886738223,-752.63,0.00019191,2]
[378498966,1754886738233,-538.48,0.00019191,2]
[378498967,1754886738242,-673.3,0.00019191,2]
[378498968,1754886738252,-214.111493,0.00019191,2]
[378498969,1754886738262,-1433.44,0.00019191,2]
[378498970,1754886738271,-400.0,0.00019191,2]
[378498971,1754886738281,-1225.04,0.00019191,2]
[378498972,1754886738290,-740.04,0.00019191,2]
[378498973,1754886738300,-1059.77,0.00019191,2]
[378498974,1754886738310,-400.0,0.00019191,2]
[378498975,1754886738320,-400.0,0.00019191,2]
[378498976,1754886738329,-1292.83,0.00019191,2]
[378498977,1754886738339,-2940.45,0.00019191,2]
[378498978,1754886738348,-400.0,0.00019191,2]
[378498979,1754886738358,-400.0,0.00019191,2]
[378498980,1754886738367,-704.09,0.00019191,2]
[378498981,1754886738377,-1244.19,0.00019191,2]
[378498982,1754886738386,-963.23,0.00019191,2]
[378498983,1754886738395,-400.0,0.00019191,2]
[378498984,1754886738405,-505.67,0.00019191,2]
[378498985,1754886738414,-503.46,0.00019191,2]
[378498986,1754886738424,-400.0,0.00019191,2]
[378498987,1754886738542,-1548.12,0.00019191,2]
[378498988,1754886738551,-1351.37,0.00019191,2]
[378498989,1754886738561,-400.0,0.00019191,2]
[378498990,1754886738570,-439.78,0.00019191,2]
[378498991,1754886738579,-808.08,0.00019191,2]
[378498992,1754886738589,-2199.24,0.00019191,2]
[378498993,1754886738601,-1408.18,0.00019191,2]
[378498994,1754886738613,-400.0,0.00019191,2]
[378498995,1754886738622,-753.75,0.00019191,2]
[378498996,1754886738632,-400.0,0.00019191,2]
[378498997,1754886738641,-400.0,0.00019191,2]
[378498998,1754886738651,-533.78,0.00019191,2]
[378498999,1754886738661,-400.0,0.00019191,2]
[378499000,1754886738670,-516.94,0.00019191,2]
[378499001,1754886738679,-1025.15,0.00019191,2]
[378499002,1754886738690,-400.0,0.00019191,2]
[378499003,1754886738699,-1428.05,0.00019191,2]
[378499004,1754886738709,-1684.69,0.00019191,2]
[378499005,1754886738718,-400.0,0.00019191,2]
[378499006,1754886738727,-1041.68,0.00019191,2]
[378499007,1754886738736,-1024.18,0.00019191,2]
[378499008,1754886738746,-1016.3,0.00019191,2]
[378499009,1754886738755,-819.85,0.00019191,2]
[378499010,1754886738766,-400.0,0.00019191,2]
[378499011,1754886738777,-1791.52,0.00019191,2]
[378499012,1754886738786,-448.18,0.00019191,2]
[378499013,1754886738795,-400.0,0.00019191,2]
[378499014,1754886738805,-973.65,0.00019191,2]
[378499015,1754886738814,-718.62,0.00019191,2]
[378499016,1754886738823,-454.71,0.00019191,2]
[378499017,1754886738832,-420.94,0.00019191,2]
[378499018,1754886738842,-538.94,0.00019191,2]
[378499019,1754886738851,-400.0,0.00019191,2]
[378499020,1754886738860,-400.0,0.00019191,2]
[378499021,1754886738869,-634.12,0.00019191,2]
[378499022,1754886738878,-400.0,0.00019191,2]
[378499023,1754886738888,-708.01,0.00019191,2]
[378499024,1754886738897,-556.52,0.00019191,2]
[378499025,1754886738908,-400.0,0.00019191,2]
[378499026,1754886738918,-1061.75,0.00019191,2]
[378499027,1754886738927,-151.0,0.00019191,2]
[378499028,1754886738937,-305.19,0.00019191,2]
[378499029,1754886738946,-400.0,0.00019191,2]
[378499030,1754886738957,-914.47,0.00019191,2]
[378499031,1754886738966,-2216.94,0.00019191,2]
[378499032,1754886738975,-400.0,0.00019191,2]
[378499033,1754886738985,-504.42,0.00019191,2]
[378499034,1754886738995,-852.11,0.00019191,2]
[378499035,1754886739005,-2132.0,0.00019191,2]
[378499036,1754886739015,-929.86,0.00019191,2]
[378499037,1754886739024,-1043.97,0.00019191,2]
[378499038,1754886739033,-1784.51,0.00019191,2]
[378499039,1754886739042,-400.0,0.00019191,2]
[378499040,1754886739052,-1951.39,0.00019191,2]
[378499041,1754886739061,-400.0,0.00019191,2]
[378499042,1754886739072,-466.31,0.00019191,2]
[378499043,1754886739081,-2489.93,0.00019191,2]
[378499044,1754886739090,-1184.34,0.00019191,2]
[378499045,1754886739100,-668.966214,0.00019191,2]
[378499046,1754886739110,-933.41,0.00019191,2]
[378499047,1754886739120,-400.0,0.00019191,2]
[378499048,1754886739130,-673.61,0.00019191,2]
[378499049,1754886739139,-937.87,0.00019191,2]
[378499050,1754886739149,-668.966214,0.00019191,2]
[378499051,1754886739159,-530.72482206,0.00019191,2]
[378499052,1754886739169,-2511.12,0.00019191,2]
[378499053,1754886739179,-155.97788714,0.00019191,2]
[378499054,1754886739188,-1694.6,0.00019191,2]
[378499055,1754886739198,-400.0,0.00019191,2]
[378499056,1754886739208,-471.5,0.00019191,2]
[378499057,1754886739217,-400.0,0.00019191,2]
[378499058,1754886739227,-400.0,0.00019191,2]
[378499059,1754886739236,-1957.86,0.00019191,2]
[378499060,1754886739247,-844.51,0.00019191,2]
[378499061,1754886739257,-3867.29,0.00019191,2]
[378499062,1754886739267,-420.28,0.00019191,2]
[378499063,1754886739278,-400.0,0.00019191,2]
[378499064,1754886739288,-1922.57,0.00019191,2]
[378499065,1754886739298,-2073.51,0.00019191,2]
[378499066,1754886739308,-2662.56,0.00019191,2]
[378499067,1754886739318,-400.0,0.00019191,2]
[378499068,1754886739328,-400.0,0.00019191,2]
[378499069,1754886739338,-649.45,0.00019191,2]
[378499070,1754886739348,-965.39,0.00019191,2]
[378499071,1754886739358,-2303.33,0.00019191,2]
[378499072,1754886739368,-1938.9,0.00019191,2]
[378499073,1754886739377,-4737.79,0.00019191,2]
[378499074,1754886739387,-443.09,0.00019191,2]
[378499075,1754886739396,-1611.6,0.00019191,2]
[378499076,1754886739405,-620.19,0.00019191,2]
[378499077,1754886739415,-400.0,0.00019191,2]
[378499078,1754886739424,-494.05,0.00019191,2]
[378499079,1754886739434,-3411.58,0.00019191,2]
[378499080,1754886739443,-400.0,0.00019191,2]
[378499081,1754886739452,-1364.24,0.00019191,2]
[378499082,1754886739462,-400.0,0.00019191,2]
[378499083,1754886739471,-928.56,0.00019191,2]
[378499084,1754886739481,-734.37,0.00019191,2]
[378499085,1754886739491,-1639.26,0.00019191,2]
[378499086,1754886739500,-453.0,0.00019191,2]
[378499087,1754886739509,-400.0,0.00019191,2]
[378499088,1754886739519,-964.97,0.00019191,2]
[378499089,1754886739528,-400.0,0.00019191,2]
[378499090,1754886739538,-2514.27,0.00019191,2]
[378499091,1754886739548,-419.88162797,0.00019191,2]
[378499092,1754886739558,-426.85,0.00019191,2]
[378499093,1754886739567,-1646.59,0.00019191,2]
[378499094,1754886739577,-566.96,0.00019191,2]
[378499095,1754886739587,-489.19,0.00019191,2]
[378499096,1754886739598,-990.1,0.00019191,2]
[378499097,1754886739611,-4613.12,0.00019191,2]
[378499098,1754886739620,-1627.5,0.00019191,2]
[378499099,1754886739629,-1052.13,0.00019191,2]
[378499100,1754886739639,-1864.85,0.00019191,2]
[378499101,1754886739650,-1421.55,0.00019191,2]
[378499102,1754886739660,-400.0,0.00019191,2]
[378499103,1754886739670,-667.49,0.00019191,2]
[378499104,1754886739682,-2035.68,0.00019191,2]
[378499105,1754886739693,-400.0,0.00019191,2]
[378499106,1754886739703,-963.99,0.00019191,2]
[378499107,1754886739712,-2455.42,0.00019191,2]
[378499108,1754886739722,-400.0,0.00019191,2]
[378499109,1754886739731,-1921.78,0.00019191,2]
[378499110,1754886739740,-857.46,0.00019191,2]
[378499111,1754886739750,-1592.26,0.00019191,2]
[378499112,1754886739760,-7913.38,0.00019191,2]
[378499113,1754886739769,-879.48,0.00019191,2]
[378499114,1754886739779,-400.0,0.00019191,2]
[378499115,1754886739789,-740.94,0.00019191,2]
[378499116,1754886739798,-1614.05,0.00019191,2]
[378499117,1754886739807,-403.59,0.00019191,2]
[378499118,1754886739816,-565.32,0.00019191,2]
[378499119,1754886739826,-839.55,0.00019191,2]
[378499120,1754886739835,-2321.56,0.00019191,2]
[378499121,1754886739845,-639.29,0.00019191,2]
[378499122,1754886739854,-1629.58,0.00019191,2]
[378499123,1754886739864,-939.98,0.00019191,2]
[378499124,1754886739874,-1323.73,0.00019191,2]
[378499125,1754886739883,-504.78,0.00019191,2]
[378499126,1754886739893,-400.0,0.00019191,2]
[378499127,1754886739902,-1738.72,0.00019191,2]
[378499128,1754886739911,-400.0,0.00019191,2]
[378499129,1754886739921,-400.0,0.00019191,2]
[378499130,1754886739930,-2334.26,0.00019191,2]
[378499131,1754886739939,-2203.02,0.00019191,2]
[378499132,1754886739948,-400.0,0.00019191,2]
[378499133,1754886739958,-866.1,0.00019191,2]
[378499134,1754886739967,-454.63,0.00019191,2]
[378499135,1754886739976,-590.93,0.00019191,2]
[378499136,1754886739985,-1370.62,0.00019191,2]
[378499137,1754886739995,-428.1,0.00019191,2]
[378499138,1754886740004,-400.0,0.00019191,2]
[378499139,1754886740015,-400.0,0.00019191,2]
[378499140,1754886740024,-400.0,0.00019191,2]
[378499141,1754886740033,-1841.0,0.00019191,2]
[378499142,1754886740043,-792.73,0.00019191,2]
[378499143,1754886740052,-822.77,0.00019191,2]
[378499144,1754886740062,-1944.13,0.00019191,2]
[378499145,1754886740071,-400.0,0.00019191,2]
[378499146,1754886740081,-3548.7,0.00019191,2]
[378499147,1754886740091,-621.88,0.00019191,2]
[378499148,1754886740100,-400.0,0.00019191,2]
[378499149,1754886740110,-808.04,0.00019191,2]
[378499150,1754886740119,-1925.87,0.00019191,2]
[378499151,1754886740129,-1150.74,0.00019191,2]
[378499152,1754886740139,-421.99,0.00019191,2]
[378499153,1754886740148,-1979.32,0.00019191,2]
[378499154,1754886740158,-499.88,0.00019191,2]
[378499155,1754886740167,-436.14,0.00019191,2]
[378499156,1754886740176,-450.76,0.00019191,2]
[378499157,1754886740186,-848.85,0.00019191,2]
[378499158,1754886740196,-400.0,0.00019191,2]
[378499159,1754886740205,-400.0,0.00019191,2]
[378499160,1754886740214,-400.0,0.00019191,2]
[378499161,1754886740224,-4500.31,0.00019191,2]
[378499162,1754886740234,-449.78,0.00019191,2]
[378499163,1754886740244,-1023.533292,0.00019191,2]
[378499164,1754886740254,-400.0,0.00019191,2]
[378499165,1754886740264,-633.736289,0.00019191,2]
[378499166,1754886740274,-2845.53,0.00019191,2]
[378499167,1754886740285,-1272.95,0.00019191,2]
[378499168,1754886740295,-1023.533292,0.00019191,2]
[378499169,1754886740305,-633.736289,0.00019191,2]
[378499170,1754886740317,-2568.52,0.00019191,2]
[378499171,1754886740327,-400.0,0.00019191,2]
[378499172,1754886740337,-5336.15,0.00019191,2]
[378499173,1754886740347,-906.0,0.00019191,2]
[378499174,1754886740357,-1189.6,0.00019191,2]
[378499175,1754886740367,-817.46,0.00019191,2]
[378499176,1754886740376,-298.03,0.00019196,2]
[378499177,1754886740386,-168.0,0.00019224,2]
[378499178,1754886740395,-168.0,0.00019229,2]
[378499179,1754886740405,-534.0,0.00019255,2]
[378499180,1754886740414,-346.717026,0.00019272,2]
[378499181,1754886740424,-346.717026,0.00019272,2]
[378499182,1754886740434,-10000.0,0.00019272,2]
[378499183,1754886740443,-10000.0,0.00019272,2]
[378499184,1754886740453,-10000.0,0.00019272,2]
[378499185,1754886740463,-10000.0,0.00019272,2]
[378499186,1754886740473,-151.0,0.00019272,2]
[378499187,1754886740483,-543.563246,0.00019272,2]
[378499188,1754886740494,-543.563246,0.00019272,2]
[378499189,1754886740504,-151.0,0.00019272,2]
[378499190,1754886740513,-151.0,0.00019273,2]
[378499191,1754886740523,-655.416858,0.00019273,2]
[378499192,1754886740532,-655.416858,0.00019273,2]
[378499193,1754886740542,-434.565424,0.00019273,2]